Cogmind - Beta 15 *** ADVENTURER MODE // 2025.08.23 @ 13:01:56 Player: erkyp3rky Result: Self-destructed Performance ------------- Evolutions (1) 500 Regions Visited (2) 400 Robots Destroyed (28) 140 Value Destroyed (563) 563 Prototype IDs (0) 0 Alien Tech Used (0) 0 Bonus (0) 0 TOTAL SCORE: 1603 Bonus ------- None Cogmind --------- Core Integrity 343/400 Matter 300/300 Energy 34/100 System Corruption 4% Temperature Cool (0) Movement Core (500) Ox9 Location -9/Materials Parts ------- > --- POWER (1) -------- (None) > --- PROPULSION (2) --- Light Treads Light Treads > --- UTILITY (4) ------ Large Storage Unit Improved Terrain Scanner Transport Network Coupler Hardened Light Armor Plating > --- WEAPON (2) ------- EM Shotgun > --- INVENTORY (15) --- Structural Scanner Seismic Detector Medium Armor Plating Tractor Beam EM Shotgun Assault Rifle Autogun Peak State ------------ > --- POWER ------------ Ion Engine > --- PROPULSION ------- Light Treads Light Treads > --- UTILITY ---------- Large Storage Unit Improved Terrain Scanner Transport Network Coupler Hardened Light Armor Plating > --- WEAPON ----------- EM Shotgun EM Shotgun > --- INVENTORY -------- Structural Scanner Seismic Detector Medium Armor Plating Tractor Beam EM Shotgun EM Shotgun Assault Rifle Autogun [Rating: 15] Favorites ----------- Power Ion Engine Engine Ion Engine Propulsion Light Treads Treads Light Treads Utility Seismic Detector Device Seismic Detector Storage Large Storage Unit Processor Transport Network Coupler Protection Hardened Light Armor Plating Weapon Assault Rifle Energy Gun EM Shotgun Ballistic Gun Assault Rifle Build | -11 -10 -9 ------- Run | Yrd Mat Mat Slots Evolved 2 | . . 2 Power . | . . . Propulsion . | . . . Utility 2 | . . 2 Weapon . | . . . Parts Attached 18 | 7 1 10 Power 1 | 1 . . Engine 1 | 1 . . Core . | . . . Reactor . | . . . Propulsion 3 | 2 . 1 Treads 3 | 2 . 1 Leg . | . . . Wheel . | . . . Hover . | . . . Flight . | . . . Utility 7 | 2 1 4 Device 3 | 1 . 2 Storage 2 | 1 1 . Processor 1 | . . 1 Hackware . | . . . Protection 1 | . . 1 Artifact . | . . . Weapon 7 | 2 . 5 Energy Gun 4 | . . 4 Energy Cannon . | . . . Ballistic Gun 3 | 2 . 1 Ballistic Cannon . | . . . Launcher . | . . . Special Weapon . | . . . Impact Weapon . | . . . Slashing Weapon . | . . . Piercing Weapon . | . . . Special Melee Weapon . | . . . Unidentified Prototypes . | . . . Parts Lost 3 | . . 3 Power 1 | . . 1 Propulsion . | . . . Utility . | . . . Weapon 2 | . . 2 Highest Loss Streak 3 | . . 3 To Critical Strikes . | . . . Average Backups 2 | . 1 4 Power . | . . . Propulsion . | . . . Utility 1 | . 1 2 Weapon 1 | . . 2 Tool/Special . | . . . Unused Backups 4 | . . 4 Power . | . . . Propulsion . | . . . Utility 2 | . . 2 Weapon 2 | . . 2 Tool/Special . | . . . Average Slot Usage (%) 98 | . 100 96 Engine 12 | . 14 9 Treads 25 | . 28 22 Device 16 | . 14 19 Storage 12 | . 14 11 Processor 5 | . . 10 Energy Gun 6 | . . 14 Ballistic Gun 17 | . 28 6 Peak Build Rating 15 | 7 7 15 Average Rating 8 | 5 7 11 On Entrance 4 | . 7 7 Naked Turns . | . . . Heaviest Build 37 | 14 29 37 Greatest Support 40 | 40 40 40 Greatest Overweight (x) 1 | 1 . . Average Overweight (x) . | . . . Largest Inventory Capacity 15 | 8 15 15 Average Capacity 11 | 7 10 15 Most Carried 8 | . 4 8 Average Carried 2 | . 1 4 Final Capacity 15 | 8 15 15 Final Carried 7 | . 4 7 Class Distribution -------------------- 100% | Mutant Dominant Class ---------------- Mutant | -10/Materials Mutant | -9/Materials Resources | -11 -10 -9 ----------- Run | Yrd Mat Mat Matter Collected 561 | 279 117 165 Remotely . | . . . Salvage Created 1108 | 42 358 708 Parts 68 | 5 26 37 Haulers Intercepted 2 | . 1 1 Recyclers Shooed . | . . . Parts Field Recycled . | . . . Retrieved Matter . | . . . Parts Self-Destructed . | . . . Prevented . | . . . Kills | -11 -10 -9 ------- Run | Yrd Mat Mat Combat Hostiles Destroyed 14 | . 7 7 Guns 14 | . 7 7 Classes Destroyed 9 | 1 6 2 Worker 2 | . 1 1 Tunneler 3 | 2 . 1 Hauler 2 | . 1 1 Recycler 3 | . 1 2 Watcher 4 | . 1 3 Swarmer 3 | . 3 . Grunt 8 | . 4 4 Brawler 1 | . . 1 Sentry 2 | . . 2 Best Kill Streak 5 | 1 4 5 Combat Bots Only 3 | . 3 3 Max Kills in Single Turn 2 | 1 1 2 Gunslinging . | . . . Exploded . | . . . Melee . | . . . Uniques/NPCs Destroyed . | . . . Combat | -11 -10 -9 -------- Run | Yrd Mat Mat Hostile Shots Fired 89 | . 29 60 Missed 27 | . 15 12 Hits 62 | . 14 48 Melee 1 | . . 1 Projectile 61 | . 14 47 Critical Strikes 2 | . . 2 Damage Taken 668 | . 113 555 Core 76 | . 19 57 Absorbed by Shields . | . . . Ignored by Resistances 195 | . 35 160 Core Remaining (%) 96 | 100 92 . Volleys Fired 61 | 5 25 31 Largest 2 | 2 2 2 Hottest 90 | 40 40 90 Shots Fired 110 | 10 50 50 Gun 110 | 10 50 50 Cannon . | . . . Launcher . | . . . Special . | . . . Kinetic 72 | 10 50 12 Thermal 12 | . . 12 Explosive . | . . . Electromagnetic 26 | . . 26 Robot Hit Streak 18 | 7 18 17 Robot Miss Streak 2 | 1 2 1 Penetration Max . | . . . Secondary Targets 1 | . . 1 Max Gunslinging Chain 1 | . . 1 Shots Hit Robots 89 | 8 39 42 Core Hits 48 | 3 17 28 Critical Kills . | . . . Critical Parts Destroyed . | . . . Critical Strikes 1 | . . 1 Burn 1 | . . 1 Melee Attacks . | . . . Impact . | . . . Slashing . | . . . Piercing . | . . . Sneak Attacks . | . . . Combat Hostiles . | . . . Follow-up Attacks . | . . . Damage Inflicted 1244 | 84 425 735 Guns 1207 | 84 425 698 Cannons . | . . . Explosions 37 | . . 37 Melee . | . . . Ramming . | . . . Kinetic 613 | 84 425 104 Thermal 197 | . . 197 Explosive . | . . . Electromagnetic 434 | . . 434 Impact . | . . . Slashing . | . . . Piercing . | . . . Highest Corruption 4 | . . 4 Average Corruption 4 | . . 4 Corruption Purged . | . . . Corruption Blocked . | . . . Effects 3 | . . 3 Energy Discharges 1 | . . 1 Weapon Failures 2 | . . 2 Overload Shots . | . . . Overflow Damage . | . . . Projectiles . | . . . Explosions . | . . . Melee . | . . . Knockbacks . | . . . Impact . | . . . Kinetic . | . . . Secondary . | . . . Self-Inflicted Damage 24 | . . 24 Shots 1 | . . 1 Rammed . | . . . Targets Rammed . | . . . Kicked . | . . . Crushed . | . . . Highest Temperature 135 | . 15 135 Average Temperature 35 | . 9 37 Received Heat Transfer 309 | . 63 246 Siege Activations . | . . . Martial Activations . | . . . Shielding Activations . | . . . Robots Disrupted . | . . . Combat Hostiles . | . . . Robots Corrupted . | . . . Combat Hostiles . | . . . Parts Fried . | . . . Impact Corruptions . | . . . Robots Melted . | . . . Combat Hostiles . | . . . Parts Melted . | . . . Heat Transferred 494 | . . 494 Parts Sabotaged . | . . . Parts Stolen . | . . . Parts Stripped . | . . . Power Chain Reactions 1 | . . 1 Alert | -11 -10 -9 ------- Run | Yrd Mat Mat Maximum Alert Level . | . . . Low Security (%) 100 | 100 100 100 Level 1 . | . . . Level 2 . | . . . Level 3 . | . . . Level 4 . | . . . Level 5 . | . . . High Security . | . . . Max Security . | . . . Peak Influence 109 | 5 109 105 Initial 18 | . . 18 Average 36 | 1 37 42 Influence Increases 460 | 10 195 255 Destroy 0b10 Robot/C 280 | . 140 140 Destroy 0b10 Robot/NC 70 | 10 20 40 Destroy Leader 72 | . 24 48 Successful Hack 16 | . 11 5 Destroy Structure 7 | . . 7 Lose Combat Pursuer 15 | . . 15 Influence Decreases 375 | 10 145 220 Entered New Map 32 | . . 32 Time Decay 313 | 10 145 158 Lost Part 30 | . . 30 Squads Dispatched 1 | . . 1 Investigation 1 | . . 1 Extermination . | . . . Reinforcement . | . . . Assault . | . . . Garrison . | . . . Intercept . | . . . Searches Triggered . | . . . Construction Impeded . | . . . Haulers Reinforced . | . . . Active Scanning Responses . | . . . Cargo Convoy Interrupts . | . . . Stealth | -11 -10 -9 --------- Run | Yrd Mat Mat Distress Signals 2 | . 1 1 Communications Jammed . | . . . Distress Signals . | . . . Times Spotted 23 | . 9 14 Peak Tracking Total 6 | . 4 6 Tactical Retreats 1 | . . 1 Traps | -11 -10 -9 ------- Run | Yrd Mat Mat Traps Triggered . | . . . Indirectly . | . . . Trap Hack Attempts . | . . . Triggered . | . . . Disarmed . | . . . Reprogrammed . | . . . Reused . | . . . Traps Extracted . | . . . Installed . | . . . Triggered . | . . . Machines | -11 -10 -9 ---------- Run | Yrd Mat Mat Machines Disabled . | . . . Max in Single Turn . | . . . Machines Repaired . | . . . Machines Dismantled . | . . . Machines Sabotaged . | . . . Overloaded Fab Kills . | . . . Hacking | -11 -10 -9 --------- Run | Yrd Mat Mat Machines Accessed 8 | . 5 3 Terminals 5 | . 3 2 Fabricators . | . . . Repair Stations 1 | . 1 . Recycling Units 1 | . 1 . Scanalyzers 1 | . . 1 Garrison Access . | . . . Total Hacks 30 | . 13 17 Successful 17 | . 7 10 Failed 13 | . 6 7 Catastrophic 2 | . 1 1 Database Lockouts . | . . . Manual 14 | . 9 5 Terminals 22 | . 11 11 Fabricators . | . . . Repair Stations 1 | . 1 . Recycling Units 1 | . 1 . Scanalyzers 6 | . . 6 Garrison Access . | . . . Terminal Hacks 6 | . 3 3 Robot Analysis 4 | . 3 1 Hauler Manifests 1 | . . 1 Zone Layout 1 | . . 1 Fabricator Hacks . | . . . Repair Station Hacks . | . . . Recycling Unit Hacks 1 | . 1 . Report Inventory 1 | . 1 . Scanalyzer 6 | . . 6 Insert Component 3 | . . 3 Analyze 3 | . . 3 Garrison Access Hacks . | . . . Unauthorized Hacks 4 | . 3 1 Terminals 4 | . 3 1 Botnet 4 | . 3 1 Fabricators . | . . . Repair Stations . | . . . Recycling Units . | . . . Scanalyzers . | . . . Garrison Access . | . . . Data Cores Recovered . | . . . Used . | . . . Hacking Detections 7 | . 4 3 Full Trace Events 2 | . 1 1 Feedback Events . | . . . Feedback Blocked . | . . . Robot Schematics Acquired . | . . . Robots Built . | . . . Authchips . | . . . Time . | . . . Total Robot Build Rating . | . . . Part Schematics Acquired 3 | . . 3 Parts Built . | . . . Authchips . | . . . Time . | . . . Total Part Build Rating . | . . . Parts Repaired . | . . . Time . | . . . Parts Recycled . | . . . Recycled Matter . | . . . Retrieved Matter . | . . . Retrieved Components . | . . . Parts Scanalyzed 3 | . . 3 Part Schematics Acquired 3 | . . 3 Parts Damaged . | . . . Bothacking | -11 -10 -9 ------------ Run | Yrd Mat Mat Used RIF Installer . | . . . Robots Hacked . | . . . Non-combat . | . . . Combat . | . . . Robot Hacks Applied . | . . . Relay Couplers Released . | . . . Fabnet Peak Effective % . | . . . Robots Rewired . | . . . Allies Hacked . | . . . Hacks Repelled . | . . . Allies | -11 -10 -9 -------- Run | Yrd Mat Mat Total Allies . | . . . Largest Group . | . . . Highest-Rated Group . | . . . Highest-Rated Ally . | . . . Total Orders . | . . . Ally Attacks . | . . . Total Damage . | . . . Kills . | . . . Allies Corrupted . | . . . Allies Melted . | . . . Intel | -11 -10 -9 ------- Run | Yrd Mat Mat Active Infowar (turns) 813 | 18 425 370 Terrain 26 | . . 26 Structural 303 | . . 303 Seismic 758 | 18 425 315 T.N.C. 369 | . . 369 Robot Analysis Total 4 | . 3 1 Derelict Logs Recovered . | . . . Drone Launches . | . . . Drone Recoveries . | . . . Exploration | -11 -10 -9 ------------- Run | Yrd Mat Mat Turns Passed 885 | 90 425 370 Spaces Moved 383 | 43 200 140 Core 3 | 3 . . Treads 380 | 40 200 140 Legs . | . . . Wheels . | . . . Hover . | . . . Flight . | . . . Fastest Speed 50 | 50 160 160 Average Speed 159 | 154 160 160 Slowest Speed 160 | 160 160 160 Overloaded Moves . | . . . Propulsion Burnouts . | . . . Robots Hopped . | . . . Potential Cave-ins . | . . . Cave-ins Triggered . | . . . Exploration Rate (%) 19 | 5 36 18 Regions Visited 2 Branch Regions . Pre-discovered Areas . | . . . Known Exits Taken . | . . . Unknown Exits Taken 2 | 1 1 . Scrap Searched . | . . . Spaces Dug . | . . . Terrain Destroyed 6 | . . 6 Melee . | . . . Projectile . | . . . AOE 6 | . . 6 Terrain Rammed . | . . . Walls Destroyed . | . . . Machines Disabled . | . . . Actions | -11 -10 -9 --------- Run | Yrd Mat Mat Total 551 | 54 260 237 Wait 70 | . 30 40 Move 381 | 42 199 140 Hop . | . . . Pick Up 9 | . 4 5 Fast Attach 12 | 7 . 5 Attach 5 | . . 5 Detach 5 | . . 5 Swap 3 | . 1 2 Drop 5 | . 1 4 Fire 61 | 5 25 31 Melee . | . . . Ram . | . . . Kick . | . . . Crush . | . . . Escape Stasis . | . . . Rewire . | . . . Trap . | . . . Miscellaneous . | . . . Route ------- -11/Scrapyard -10/Materials -9/Materials History --------- Turn | Location | Event 15 | -11/Scrapyard | Discovered new exit (range 16) 91 | -11/Scrapyard | Entered Materials 303 | -10/Materials | Build established: Mutant 441 | -10/Materials | Discovered new exit (range 9) 516 | -10/Materials | Entered another Materials area 516 | -9/Materials | Evolved 2 slots: Utility x2 886 | -9/Materials | Self-destructed Last Messages --------------- 00818_ M-13 Machinist repairs Y-45 Defender. 00836_ Atomic Centrifuge disabled. 00839_ Y-45 Defender destroyed. 00846_ Ion Engine destroyed. 00846_ System corrupted by crushing effect (+4). 00846_ B-36 Bruiser destroyed. 00847_ Acquired 15 matter. 00848_ EM Shotgun destroyed. 00849_ System corrupted: EM Shotgun failed to cycle. 00850_ System corrupted: Energy discharge (-24). 00864_ G-34 Mercenary destroyed. 00868_ EM Shotgun destroyed. 00869_ Acquired 10 matter. 00874_ K-01 Serf collects debris. 00884_ Critical hit (Burn: +37). 00884_ K-01 Serf collects debris. 00884_ System corrupted: EM Shotgun failed to cycle. 00886_ Y-45 Defender misfires. Map ----- +----------------------------------------------------+ | ###?????## "" ########### ## ????? | | ##?????## ""S ### # ## ????? | | ##?????## "" ### + a#####????? | | ##?????## ### # ????? | | ##?????## ######## ## ##+##????? | | ##?????## ]########### # ????? | | ###########+#### ##### # ????? | | ###########==!###|[ + ????? | | !%=%a!=[%%*"%[=%=* T / # ????? | | ###########= !###| # ????? | | ################# ###### ## ????? | | ##???????##########+######## ######????? | | ####?###??????## ! ####% ###??????? | | ### ##??????## """ ### ##??????? | | ##??????## """ ## " ###??????? | | ### ##??????## """ ### #####????? | | ###?###??????## ! #### ### ""????? | | ##???????????## !! """ #### ### ""????? | | + ???????????## !! """ #### ### ????? | | ##???????????## """ ## # ????? | | ##???????????## ## # ????? | | ##???????????############ T + ?? ?? | | ##???????????############ # ! ????? | | ###????????????????????### # ????? | | ###????????????????????#####/### "???? | | ???????????????????????##@!YY= # ? """?? | | ??????????????????????? #==Ym! # ?? ? | | ???????????????????????"#]k"=" ##??####? | | ???????????????????????"# """ ##??####? | | ?????????????? ????????"#! """ ##??????? | | ??????????????????????? # ##??????? | | ??????????????????????? ######+##??????? | | ??????????????????????? ###### ??????? | | ???????????????????????????????????????? | | ???????????????????????????????????????? | | ???????????????????????????????????????? | | ???????????????????????????????????????? | | ???????????????????????????????????????? | | ???????????????????#???????????????????? | | ???????????????????????#??????? ???????? | | ??????????????????????????? ???????????? | | ????a??????????????????????????????????? | | ???????????????????????????????????????? | | ???????????????????????????????????????? | | ???????????????????????????????????????? | | ???????????????????????????????????????? | | ???????????????????????????????????????? | | ???????????????????????????????????????? | | ???????????????????????????????????????? | | ???????????????????????????????????????? | +----------------------------------------------------+ Best States ------------- Heat Dissipation 28 Energy Generation 10 Energy Capacity 250 Matter Stores 300 Matter Capacity 300 Sight Range 16 Terrain Scan Range 16 Terrain Scan Density 10 Armor Coverage 150 Resistance: KI 20 Resistance: TH 20 Resistance: EX 20 Resistance: EM 20 Resistance: I 20 Resistance: S 20 Resistance: P 20 Evasion (%) 40 Recoil Reduction 2 Offensive Hacking 10 Item Schematics ----------------- Tractor Beam | -9/Materials | Scanalyzed EM Shotgun | -9/Materials | Scanalyzed Structural Scanner | -9/Materials | Scanalyzed Robot Schematics ------------------ None Fabricated ------------ Nothing Repaired ---------- Nothing Alien Tech Used ----------------- None Achievements -------------- None Challenges ------------ None Game ------ Seed MolecularCryofiberRailcannon Manual? 0 Play Time 00:11:49 Cumulative 72.9 hours Start 2025.08.23 @ 12:28:15 End 2025.08.23 @ 13:01:56 Sessions 1 Manual Loads 0 Difficulty Adventurer Special Mode None Game No. 61 Rogue 20 Adventurer 41 Explorer 0 Win Type - Total 2 Types 2/0/0/0/0/0/0/0/0/0 Lore% 40 Gallery% 50 Achievement% 50 Wizard Run 0 Options --------- Layout 1 ASCII 1 Keyboard 0 Movement Mouse Keybinds 0 Fullscreen 1 Font 24/X11 Map View 50x35 Zoom Use 0% Tactical HUD 1 Map Filters NONE Filters NONE Steam 1 RUN: ab85c117-a1d2-4f09-923e-df9400e361b5